[Event "Skol-SM i Schack 2024, Grupp A"]
[Site "Arena Varberg, Kattegattsvagen 26, Varberg, Sweden"]
[Date "2024.10.12"]
[Round "3.3"]
[White "Harlin, Jacob"]
[Black "Eriksson, Wilmer"]
[Result "1-0"]
[TimeControl "45 minutes + 10 seconds per move from move one."]
[WhiteFideId "1728180"]
[BlackFideId "1768298"]
[WhiteElo "1919"]
[BlackElo "1849"]

1. e4 {[%clk 00:45:16]} {[%emt 00:00:03]} c5 {[%clk 00:45:05]} {[%emt
00:00:16]} 2. c3 {[%clk 00:45:19]} {[%emt 00:00:06]} Nf6 {[%clk 00:45:00]}
{[%emt 00:00:15]} 3. e5 {[%clk 00:45:27]} {[%emt 00:00:02]} Nd5 {[%clk
00:45:08]} {[%emt 00:00:01]} 4. d4 {[%clk 00:45:29]} {[%emt 00:00:08]} cxd4
{[%clk 00:45:07]} {[%emt 00:00:12]} 5. Nf3 {[%clk 00:45:37]} {[%emt 00:00:02]}
d6 {[%clk 00:44:05]} {[%emt 00:01:11]} 6. exd6 {[%clk 00:44:15]} {[%emt
00:01:33]} e6 {[%clk 00:43:14]} {[%emt 00:01:00]} 7. Bc4 {[%clk 00:42:17]}
{[%emt 00:02:08]} Nb6 {[%clk 00:41:21]} {[%emt 00:02:02]} 8. Bb3 {[%clk
00:41:53]} {[%emt 00:00:36]} Bxd6 {[%clk 00:36:40]} {[%emt 00:04:50]} 9. Nxd4
{[%clk 00:36:53]} {[%emt 00:05:11]} O-O {[%clk 00:31:35]} {[%emt 00:05:14]} 10.
O-O {[%clk 00:36:00]} {[%emt 00:01:04]} Nc6 {[%clk 00:30:48]} {[%emt 00:00:57]}
11. Be3 {[%clk 00:31:41]} {[%emt 00:04:28]} Nxd4 {[%clk 00:23:22]} {[%emt
00:07:37]} 12. Qxd4 {[%clk 00:20:50]} {[%emt 00:11:01]} Qe7 {[%clk 00:10:27]}
{[%emt 00:13:05]} 13. Rd1 {[%clk 00:20:39]} {[%emt 00:00:21]} Rd8 {[%clk
00:10:09]} {[%emt 00:00:28]} 14. Qg4 {[%clk 00:20:47]} {[%emt 00:00:02]} e5
{[%clk 00:09:17]} {[%emt 00:01:02]} 15. Qg5 {[%clk 00:20:24]} {[%emt 00:00:32]}
Be6 {[%clk 00:08:06]} {[%emt 00:01:21]} 16. Qxe7 {[%clk 00:13:33]} {[%emt
00:07:01]} Bxe7 {[%clk 00:08:15]} {[%emt 00:00:02]} 17. Nd2 {[%clk 00:13:42]}
Nd5 {[%clk 00:06:02]} {[%emt 00:02:24]} 18. Nc4 {[%clk 00:05:33]} {[%emt
00:08:19]} Nxe3 {[%clk 00:05:37]} {[%emt 00:00:34]} 19. Nxe3 {[%clk 00:05:40]}
{[%emt 00:00:03]} Bxb3 {[%clk 00:05:30]} {[%emt 00:00:16]} 20. axb3 {[%clk
00:05:48]} {[%emt 00:00:03]} Rxd1+ {[%clk 00:03:50]} {[%emt 00:01:50]} 21. Rxd1
{[%clk 00:05:53]} {[%emt 00:00:05]} Rd8 {[%clk 00:03:55]} {[%emt 00:00:05]} 22.
Rxd8+ {[%clk 00:01:58]} {[%emt 00:04:05]} Bxd8 {[%clk 00:04:04]} 23. Kf1 {[%clk
00:01:10]} {[%emt 00:00:57]} f6 {[%clk 00:03:50]} {[%emt 00:00:24]} 24. Ke2
{[%clk 00:01:07]} {[%emt 00:00:14]} Kf7 {[%clk 00:04:00]} {[%emt 00:00:01]} 25.
b4 {[%clk 00:00:14]} {[%emt 00:01:03]} b5 {[%clk 00:02:26]} {[%emt 00:01:43]}
26. b3 {[%clk 00:00:14]} {[%emt 00:00:10]} Ke6 {[%clk 00:00:54]} {[%emt
00:01:42]} 27. c4 {[%clk 00:00:23]} {[%emt 00:00:01]} a6 {[%clk 00:00:22]}
{[%emt 00:00:43]} 28. Nd5 {[%clk 00:00:20]} {[%emt 00:00:13]} f5 {[%clk
00:00:15]} {[%emt 00:00:17]} 29. Nc3 {[%clk 00:00:23]} {[%emt 00:00:07]} bxc4
30. bxc4 {[%clk 00:00:31]} Be7 {[%clk 00:00:14]} {[%emt 00:00:17]} 31. Nd5
{[%clk 00:00:41]} Bd6 {[%clk 00:00:23]} {[%emt 00:00:01]} 32. h3 {[%clk
00:00:16]} {[%emt 00:00:35]} g5 {[%clk 00:00:21]} {[%emt 00:00:12]} 33. f3
{[%clk 00:00:17]} {[%emt 00:00:10]} h5 {[%clk 00:00:16]} {[%emt 00:00:14]} 34.
Ke3 {[%clk 00:00:25]} {[%emt 00:00:02]} h4 {[%clk 00:00:18]} {[%emt 00:00:09]}
35. Kd3 {[%clk 00:00:21]} {[%emt 00:00:13]} Bb8 {[%clk 00:00:13]} {[%emt
00:00:14]} 36. Nc3 {[%clk 00:00:15]} {[%emt 00:00:17]} Ba7 {[%clk 00:00:13]}
{[%emt 00:00:10]} 37. c5 {[%clk 00:00:18]} {[%emt 00:00:08]} Kd7 {[%clk
00:00:13]} {[%emt 00:00:10]} 38. Kc4 {[%clk 00:00:25]} {[%emt 00:00:02]} Ke6
{[%clk 00:00:15]} {[%emt 00:00:08]} 39. Nd5 {[%clk 00:00:29]} {[%emt 00:00:06]}
Bb8 {[%clk 00:00:22]} {[%emt 00:00:03]} 40. Nb6 {[%clk 00:00:16]} {[%emt
00:00:23]} Bc7 {[%clk 00:00:28]} {[%emt 00:00:04]} 41. Nd5 {[%clk 00:00:20]}
{[%emt 00:00:07]} Bb8 {[%clk 00:00:36]} {[%emt 00:00:01]} 42. c6 {[%clk
00:00:14]} {[%emt 00:00:16]} Kd6 {[%clk 00:00:42]} {[%emt 00:00:04]} 43. c7
{[%clk 00:00:23]} Bxc7 {[%clk 00:00:46]} {[%emt 00:00:05]} 44. Nxc7 {[%clk
00:00:32]} {[%emt 00:00:01]} Kxc7 {[%clk 00:00:52]} {[%emt 00:00:05]} 45. Kd5
{[%clk 00:00:42]} Kb6 {[%clk 00:01:00]} {[%emt 00:00:03]} 46. Kxe5 {[%clk
00:00:50]} {[%emt 00:00:01]} Kb5 {[%clk 00:01:09]} 47. Kxf5 {[%clk 00:00:57]}
{[%emt 00:00:04]} Kxb4 {[%clk 00:01:16]} {[%emt 00:00:03]} 48. Kxg5 {[%clk
00:01:06]} a5 {[%clk 00:01:20]} {[%emt 00:00:06]} 49. f4 {[%clk 00:01:15]}
{[%emt 00:00:01]} a4 {[%clk 00:01:27]} {[%emt 00:00:03]} 50. f5 {[%clk
00:01:24]} {[%emt 00:00:01]} a3 {[%clk 00:01:36]} 51. f6 {[%clk 00:01:33]} a2
{[%clk 00:01:44]} {[%emt 00:00:02]} 52. f7 {[%clk 00:01:41]} {[%emt 00:00:02]}
a1=Q {[%clk 00:01:48]} {[%emt 00:00:06]} 53. f8=Q+ {[%clk 00:01:48]} {[%emt
00:00:02]} Kb5 {[%clk 00:01:52]} {[%emt 00:00:05]} 54. Qf5+ {[%clk 00:01:46]}
{[%emt 00:00:13]} Kc4 {[%clk 00:01:52]} {[%emt 00:00:11]} 55. Qf4+ {[%clk
00:01:51]} {[%emt 00:00:05]} Kd5 {[%clk 00:02:00]} {[%emt 00:00:02]} 56. Kxh4
{[%clk 00:01:49]} {[%emt 00:00:12]} Qg1 {[%clk 00:01:06]} {[%emt 00:01:03]} 57.
g4 {[%clk 00:01:10]} {[%emt 00:00:50]} Qe1+ {[%clk 00:01:15]} {[%emt 00:00:01]}
58. Kg5 {[%clk 00:00:56]} {[%emt 00:00:21]} Qe7 {[%clk 00:01:20]} {[%emt
00:00:08]} 59. Qf6 {[%clk 00:00:58]} {[%emt 00:00:07]} Qe3 {[%clk 00:01:28]}
{[%emt 00:00:02]} 60. Kh4 {[%clk 00:00:46]} {[%emt 00:00:22]} Qe1+ {[%clk
00:01:34]} {[%emt 00:00:05]} 61. Kh5 {[%clk 00:00:45]} {[%emt 00:00:10]} Qe8
{[%clk 00:01:41]} {[%emt 00:00:03]} 62. Kh6 {[%clk 00:00:29]} {[%emt 00:00:24]}
Qe1 {[%clk 00:01:17]} {[%emt 00:00:36]} 63. h4 {[%clk 00:00:27]} {[%emt
00:00:13]} Qg3 {[%clk 00:00:22]} {[%emt 00:01:04]} 64. Qf5+ {[%clk 00:00:36]}
{[%emt 00:00:02]} Kd6 {[%clk 00:00:28]} {[%emt 00:00:03]} 65. h5 {[%clk
00:00:36]} {[%emt 00:00:11]} Qc3 {[%clk 00:00:28]} {[%emt 00:00:10]} 66. Qf8+
{[%clk 00:00:25]} {[%emt 00:00:21]} Ke6 {[%clk 00:00:29]} {[%emt 00:00:09]} 67.
g5 {[%clk 00:00:24]} {[%emt 00:00:11]} Qc1 {[%clk 00:00:36]} {[%emt 00:00:03]}
68. Qf6+ {[%clk 00:00:30]} {[%emt 00:00:03]} Kd7 {[%clk 00:00:45]} {[%emt
00:00:02]} 69. Kg7 {[%clk 00:00:32]} {[%emt 00:00:06]} Ke8 {[%clk 00:00:32]}
{[%emt 00:00:24]} 70. Qf7+ {[%clk 00:00:28]} {[%emt 00:00:15]} Kd8 {[%clk
00:00:42]} 71. Qf6+ {[%clk 00:00:23]} {[%emt 00:00:14]} Ke8 {[%clk 00:00:51]}
72. Kh6 {[%clk 00:00:17]} {[%emt 00:00:16]} Qd2 {[%clk 00:00:41]} {[%emt
00:00:20]} 73. Kg6 {[%clk 00:00:23]} {[%emt 00:00:04]} Qd3+ {[%clk 00:00:44]}
{[%emt 00:00:07]} 74. Kg7 {[%clk 00:00:24]} {[%emt 00:00:08]} Qd7+ {[%clk
00:00:50]} {[%emt 00:00:05]} 75. Kh6 {[%clk 00:00:31]} {[%emt 00:00:03]} Qd2
{[%clk 00:00:56]} {[%emt 00:00:05]} 76. Qe6+ {[%clk 00:00:33]} {[%emt
00:00:08]} Kd8 {[%clk 00:00:13]} {[%emt 00:00:53]} 77. Qe5 {[%clk 00:00:33]}
{[%emt 00:00:09]} Qc1 {[%clk 00:00:15]} {[%emt 00:00:08]} 78. Kg7 {[%clk
00:00:36]} {[%emt 00:00:07]} Qc6 1-0

[Event "Skol-SM i Schack 2024, Grupp A"]
[Site "Arena Varberg, Kattegattsvagen 26, Varberg, Sweden"]
[Date "2024.10.12"]
[Round "4.7"]
[White "Emanuelsson, Aron"]
[Black "Abdulkader, Ahmad"]
[Result "1-0"]
[TimeControl "45 minutes + 10 seconds per move from move one."]
[WhiteFideId "1780069"]
[BlackFideId "1776550"]
[WhiteElo "1720"]
[BlackElo "1613"]

1. d4 {[%clk 00:45:17]} {[%emt 00:00:03]} d5 {[%clk 00:45:11]} {[%emt
00:00:10]} 2. Bf4 {[%clk 00:45:21]} {[%emt 00:00:05]} Nf6 {[%clk 00:45:19]}
{[%emt 00:00:02]} 3. e3 {[%clk 00:45:30]} {[%emt 00:00:02]} c5 {[%clk
00:45:15]} {[%emt 00:00:14]} 4. c3 {[%clk 00:45:39]} Nc6 {[%clk 00:45:04]}
{[%emt 00:00:21]} 5. Nd2 {[%clk 00:45:43]} {[%emt 00:00:06]} Bf5 {[%clk
00:44:09]} {[%emt 00:01:05]} 6. Qb3 {[%clk 00:45:26]} {[%emt 00:00:28]} Qb6
{[%clk 00:44:12]} {[%emt 00:00:06]} 7. Ngf3 {[%clk 00:45:11]} {[%emt 00:00:25]}
e6 {[%clk 00:43:07]} {[%emt 00:01:14]} 8. Be2 {[%clk 00:43:54]} {[%emt
00:01:27]} Be7 {[%clk 00:42:16]} {[%emt 00:01:01]} 9. h3 {[%clk 00:44:02]}
{[%emt 00:00:02]} O-O {[%clk 00:39:08]} {[%emt 00:03:19]} 10. Nh4 {[%clk
00:43:48]} {[%emt 00:00:24]} Bg6 {[%clk 00:37:19]} {[%emt 00:01:58]} 11. Nxg6
{[%clk 00:43:54]} {[%emt 00:00:04]} hxg6 {[%clk 00:36:59]} {[%emt 00:00:30]} 12.
O-O {[%clk 00:44:02]} {[%emt 00:00:02]} Nd7 {[%clk 00:35:59]} {[%emt 00:01:11]}
13. Nf3 {[%clk 00:43:43]} {[%emt 00:00:28]} Qxb3 {[%clk 00:33:09]} {[%emt
00:03:01]} 14. axb3 {[%clk 00:43:51]} {[%emt 00:00:02]} a6 {[%clk 00:33:17]}
{[%emt 00:00:01]} 15. dxc5 {[%clk 00:40:27]} {[%emt 00:03:35]} Nxc5 {[%clk
00:33:25]} {[%emt 00:00:02]} 16. b4 {[%clk 00:40:10]} {[%emt 00:00:27]} Ne4
{[%clk 00:31:51]} {[%emt 00:01:43]} 17. b5 {[%clk 00:38:45]} {[%emt 00:01:36]}
axb5 {[%clk 00:31:45]} {[%emt 00:00:16]} 18. Bxb5 {[%clk 00:38:53]} {[%emt
00:00:02]} g5 {[%clk 00:31:04]} {[%emt 00:00:50]} 19. Bc7 {[%clk 00:37:51]}
{[%emt 00:01:12]} Rfc8 {[%clk 00:25:48]} {[%emt 00:05:26]} 20. Bb6 {[%clk
00:37:25]} {[%emt 00:00:36]} f6 {[%clk 00:24:45]} {[%emt 00:01:13]} 21. Nd4
{[%clk 00:36:34]} {[%emt 00:01:01]} Nxd4 {[%clk 00:24:31]} {[%emt 00:00:24]} 22.
exd4 {[%clk 00:35:35]} {[%emt 00:01:09]} Nd6 {[%clk 00:22:17]} {[%emt
00:02:24]} 23. Bd7 {[%clk 00:35:02]} 1-0

[Event "Skol-SM i Schack 2024, Grupp A"]
[Site "Arena Varberg, Kattegattsvagen 26, Varberg, Sweden"]
[Date "2024.10.12"]
[Round "5.12"]
[White "Wingh, Walter"]
[Black "Johansson, Sigge"]
[Result "0-1"]
[TimeControl "45 minutes + 10 seconds per move from move one."]
[WhiteFideId "1767836"]
[BlackFideId "1742612"]
[WhiteElo "1612"]
[BlackElo "1746"]

1. d4 {[%clk 00:45:17]} {[%emt 00:00:02]} Nf6 {[%clk 00:45:15]} {[%emt
00:00:06]} 2. c4 {[%clk 00:45:23]} {[%emt 00:00:04]} e6 {[%clk 00:45:22]}
{[%emt 00:00:03]} 3. Nf3 {[%clk 00:45:27]} {[%emt 00:00:06]} d5 {[%clk
00:45:22]} {[%emt 00:00:10]} 4. g3 {[%clk 00:45:33]} {[%emt 00:00:04]} c6
{[%clk 00:45:08]} {[%emt 00:00:24]} 5. Bg2 {[%clk 00:45:02]} {[%emt 00:00:41]}
Bd6 {[%clk 00:45:13]} {[%emt 00:00:05]} 6. O-O {[%clk 00:44:31]} {[%emt
00:00:41]} O-O {[%clk 00:45:18]} {[%emt 00:00:05]} 7. Qc2 {[%clk 00:44:29]}
{[%emt 00:00:12]} Ne4 {[%clk 00:43:35]} {[%emt 00:01:53]} 8. Nbd2 {[%clk
00:43:39]} {[%emt 00:00:59]} f5 {[%clk 00:43:00]} {[%emt 00:00:45]} 9. Ne1
{[%clk 00:34:33]} {[%emt 00:09:17]} Nd7 {[%clk 00:41:22]} {[%emt 00:01:48]} 10.
f3 {[%clk 00:34:22]} {[%emt 00:00:22]} Nef6 {[%clk 00:40:01]} {[%emt 00:01:30]}
11. e4 {[%clk 00:34:13]} {[%emt 00:00:18]} fxe4 {[%clk 00:36:45]} {[%emt
00:03:27]} 12. fxe4 {[%clk 00:34:18]} {[%emt 00:00:05]} Ng4 {[%clk 00:36:07]}
{[%emt 00:00:47]} 13. Rxf8+ {[%clk 00:30:29]} {[%emt 00:03:59]} Qxf8 {[%clk
00:36:09]} {[%emt 00:00:09]} 14. Ndf3 {[%clk 00:30:38]} {[%emt 00:00:01]} dxe4
{[%clk 00:27:08]} {[%emt 00:09:12]} 15. Qxe4 {[%clk 00:30:28]} {[%emt
00:00:19]} Qf5 {[%clk 00:27:01]} {[%emt 00:00:17]} 16. Qxf5 {[%clk 00:23:31]}
{[%emt 00:07:08]} exf5 {[%clk 00:27:05]} {[%emt 00:00:05]} 17. Nd3 {[%clk
00:23:37]} {[%emt 00:00:03]} Ngf6 {[%clk 00:26:35]} {[%emt 00:00:40]} 18. Nfe5
{[%clk 00:21:09]} {[%emt 00:02:39]} Ne4 {[%clk 00:23:40]} {[%emt 00:03:05]} 19.
Nxd7 {[%clk 00:10:07]} {[%emt 00:11:12]} Bxd7 {[%clk 00:23:36]} {[%emt
00:00:13]} 20. b3 {[%clk 00:10:02]} {[%emt 00:00:16]} Re8 {[%clk 00:22:32]}
{[%emt 00:01:13]} 21. Bf4 {[%clk 00:08:13]} {[%emt 00:01:59]} Bxf4 {[%clk
00:21:37]} {[%emt 00:01:05]} 22. Nxf4 {[%clk 00:08:22]} {[%emt 00:00:02]} Kf7
{[%clk 00:19:30]} {[%emt 00:02:16]} 23. Nd3 {[%clk 00:08:13]} {[%emt 00:00:19]}
Nc3 {[%clk 00:17:40]} {[%emt 00:02:01]} 24. Ne5+ {[%clk 00:08:14]} {[%emt
00:00:09]} Ke6 {[%clk 00:16:48]} {[%emt 00:01:01]} 25. Re1 {[%clk 00:07:19]}
{[%emt 00:01:05]} Kd6 {[%clk 00:16:24]} {[%emt 00:00:34]} 26. a3 {[%clk
00:07:00]} {[%emt 00:00:30]} Re7 {[%clk 00:12:53]} {[%emt 00:03:40]} 27. Kf1
{[%clk 00:06:30]} {[%emt 00:00:39]} Bc8 {[%clk 00:12:12]} {[%emt 00:00:53]} 28.
Rc1 {[%clk 00:06:01]} {[%emt 00:00:39]} Ne4 {[%clk 00:11:36]} {[%emt 00:00:45]}
29. Bxe4 {[%clk 00:05:57]} {[%emt 00:00:15]} fxe4 {[%clk 00:11:43]} {[%emt
00:00:03]} 30. Re1 {[%clk 00:05:28]} {[%emt 00:00:38]} c5 {[%clk 00:11:36]}
{[%emt 00:00:17]} 31. Rxe4 {[%clk 00:01:26]} {[%emt 00:04:12]} cxd4 {[%clk
00:11:43]} {[%emt 00:00:03]} 32. Rxd4+ {[%clk 00:01:35]} {[%emt 00:00:02]} Kxe5
{[%clk 00:11:36]} {[%emt 00:00:17]} 33. Rd5+ {[%clk 00:01:34]} {[%emt
00:00:11]} Ke4 {[%clk 00:10:56]} {[%emt 00:00:50]} 34. Rb5 {[%clk 00:01:16]}
{[%emt 00:00:29]} Kd4 {[%clk 00:09:46]} {[%emt 00:01:19]} 35. a4 {[%clk
00:00:28]} {[%emt 00:00:59]} Re5 {[%clk 00:08:49]} {[%emt 00:01:06]} 36. Rxe5
{[%clk 00:00:24]} {[%emt 00:00:14]} Kxe5 {[%clk 00:08:58]} 37. Ke2 {[%clk
00:00:31]} {[%emt 00:00:04]} Kd4 {[%clk 00:09:03]} {[%emt 00:00:04]} 38. Kd2
{[%clk 00:00:40]} {[%emt 00:00:01]} Bf5 {[%clk 00:09:12]} 39. a5 {[%clk
00:00:34]} {[%emt 00:00:17]} a6 {[%clk 00:09:16]} {[%emt 00:00:06]} 40. h4
{[%clk 00:00:41]} {[%emt 00:00:02]} h5 {[%clk 00:09:24]} {[%emt 00:00:02]} 41.
Kc1 {[%clk 00:00:33]} {[%emt 00:00:19]} Kc3 {[%clk 00:09:32]} {[%emt 00:00:02]}
42. c5 {[%clk 00:00:42]} {[%emt 00:00:01]} Kxb3 {[%clk 00:09:38]} {[%emt
00:00:04]} 43. Kd2 {[%clk 00:00:44]} {[%emt 00:00:07]} Kc4 {[%clk 00:09:46]}
{[%emt 00:00:02]} 0-1

[Event "Skol-SM i Schack 2024, Grupp A"]
[Site "Arena Varberg, Kattegattsvagen 26, Varberg, Sweden"]
[Date "2024.10.12"]
[Round "3.5"]
[White "Frank, Anton"]
[Black "Langhals, Mattias"]
[Result "1-0"]
[TimeControl "45 minutes + 10 seconds per move from move one."]
[WhiteTitle "CM"]
[WhiteFideId "1752383"]
[BlackFideId "1779168"]
[WhiteElo "2110"]
[BlackElo "1697"]

1. e4 {[%clk 00:44:57]} {[%emt 00:00:22]} e5 {[%clk 00:44:23]} {[%emt
00:00:58]} 2. Nf3 {[%clk 00:45:03]} {[%emt 00:00:04]} Nf6 {[%clk 00:44:28]}
{[%emt 00:00:05]} 3. d4 {[%clk 00:45:09]} {[%emt 00:00:04]} exd4 {[%clk
00:41:58]} {[%emt 00:02:40]} 4. e5 {[%clk 00:45:12]} {[%emt 00:00:07]} Nd5
{[%clk 00:41:43]} {[%emt 00:00:25]} 5. Qxd4 {[%clk 00:44:04]} {[%emt 00:01:18]}
Nb6 {[%clk 00:41:34]} {[%emt 00:00:19]} 6. Nc3 {[%clk 00:43:34]} {[%emt
00:00:39]} Nc6 {[%clk 00:41:26]} {[%emt 00:00:19]} 7. Qf4 {[%clk 00:43:15]}
{[%emt 00:00:27]} Be7 {[%clk 00:38:05]} {[%emt 00:03:33]} 8. Bd2 {[%clk
00:41:36]} {[%emt 00:01:49]} Nb4 {[%clk 00:33:33]} {[%emt 00:04:43]} 9. O-O-O
{[%clk 00:40:46]} {[%emt 00:00:59]} N4d5 {[%clk 00:33:06]} {[%emt 00:00:37]} 10.
Nxd5 {[%clk 00:39:02]} {[%emt 00:01:54]} Nxd5 {[%clk 00:33:08]} {[%emt
00:00:08]} 11. Qg3 {[%clk 00:39:09]} {[%emt 00:00:02]} g6 {[%clk 00:30:18]}
{[%emt 00:03:01]} 12. Bh6 {[%clk 00:38:21]} {[%emt 00:00:57]} c6 {[%clk
00:25:45]} {[%emt 00:04:44]} 13. Bc4 {[%clk 00:36:54]} {[%emt 00:01:36]} Nc7
{[%clk 00:20:03]} {[%emt 00:05:53]} 14. Ng5 {[%clk 00:33:25]} {[%emt 00:03:39]}
Ne6 {[%clk 00:16:19]} {[%emt 00:03:55]} 15. Nxe6 {[%clk 00:28:53]} {[%emt
00:04:41]} fxe6 {[%clk 00:16:02]} {[%emt 00:00:27]} 16. Bxe6 {[%clk 00:28:14]}
{[%emt 00:00:48]} Bf8 {[%clk 00:14:57]} {[%emt 00:01:16]} 17. Bxf8 {[%clk
00:23:34]} {[%emt 00:04:50]} Rxf8 {[%clk 00:14:32]} {[%emt 00:00:35]} 18. Bb3
{[%clk 00:22:53]} {[%emt 00:00:51]} Rf5 {[%clk 00:09:41]} {[%emt 00:05:00]} 19.
f4 {[%clk 00:21:19]} {[%emt 00:01:44]} Qe7 {[%clk 00:07:50]} {[%emt 00:02:01]}
20. Rd4 {[%clk 00:20:02]} {[%emt 00:01:27]} a5 {[%clk 00:06:26]} {[%emt
00:01:35]} 21. c3 {[%clk 00:18:49]} {[%emt 00:01:23]} Ra6 {[%clk 00:05:28]}
{[%emt 00:01:09]} 22. Rhd1 {[%clk 00:17:58]} {[%emt 00:01:00]} b5 {[%clk
00:03:30]} {[%emt 00:02:08]} 23. Bc2 {[%clk 00:17:12]} {[%emt 00:00:56]} Rf8
{[%clk 00:03:21]} {[%emt 00:00:19]} 24. Kb1 {[%clk 00:16:09]} {[%emt 00:01:13]}
b4 {[%clk 00:02:55]} {[%emt 00:00:36]} 25. c4 {[%clk 00:16:00]} {[%emt
00:00:18]} c5 {[%clk 00:01:57]} {[%emt 00:01:09]} 26. Rd6 {[%clk 00:15:19]}
{[%emt 00:00:49]} Rxd6 {[%clk 00:01:22]} {[%emt 00:00:46]} 27. exd6 {[%clk
00:15:23]} {[%emt 00:00:07]} Qf6 {[%clk 00:01:01]} {[%emt 00:00:31]} 28. Qe3+
{[%clk 00:15:27]} {[%emt 00:00:05]} Kf7 {[%clk 00:00:30]} {[%emt 00:00:42]} 29.
g3 {[%clk 00:14:39]} {[%emt 00:00:57]} Kg7 {[%clk 00:00:15]} {[%emt 00:00:25]}
30. Qxc5 {[%clk 00:14:43]} {[%emt 00:00:06]} Bb7 {[%clk 00:00:16]} {[%emt
00:00:09]} 31. Qxa5 {[%clk 00:14:35]} {[%emt 00:00:17]} Kg8 {[%clk 00:00:12]}
{[%emt 00:00:14]} 32. Qxb4 {[%clk 00:14:27]} {[%emt 00:00:18]} Bc6 {[%clk
00:00:15]} {[%emt 00:00:07]} 33. c5 {[%clk 00:14:17]} {[%emt 00:00:20]} Re8
{[%clk 00:00:16]} {[%emt 00:00:09]} 34. Qc4+ {[%clk 00:14:01]} {[%emt
00:00:26]} Kf8 {[%clk 00:00:19]} {[%emt 00:00:08]} 35. a4 {[%clk 00:13:53]}
{[%emt 00:00:17]} Bf3 {[%clk 00:00:15]} {[%emt 00:00:15]} 36. Qd4 {[%clk
00:12:56]} {[%emt 00:01:06]} Qe6 {[%clk 00:00:00]} 1-0

[Event "Skol-SM i Schack 2024, Grupp A"]
[Site "Arena Varberg, Kattegattsvagen 26, Varberg, Sweden"]
[Date "2024.10.12"]
[Round "4.9"]
[White "Langhals, Mattias"]
[Black "Fredlund, Joel"]
[Result "1-0"]
[TimeControl "45 minutes + 10 seconds per move from move one."]
[WhiteFideId "1779168"]
[BlackFideId "1748157"]
[WhiteElo "1697"]
[BlackElo "1454"]

1. e4 {[%clk 00:45:17]} {[%emt 00:00:03]} e5 {[%clk 00:45:14]} {[%emt
00:00:07]} 2. Nf3 {[%clk 00:45:21]} {[%emt 00:00:05]} Nc6 {[%clk 00:45:16]}
{[%emt 00:00:08]} 3. d4 {[%clk 00:45:27]} {[%emt 00:00:05]} exd4 {[%clk
00:44:09]} {[%emt 00:01:16]} 4. Bc4 {[%clk 00:45:35]} {[%emt 00:00:02]} Na5
{[%clk 00:43:06]} {[%emt 00:01:13]} 5. Qxd4 {[%clk 00:41:39]} {[%emt 00:04:06]}
Qe7 {[%clk 00:41:30]} {[%emt 00:01:46]} 6. Nc3 {[%clk 00:39:57]} {[%emt
00:01:52]} c5 {[%clk 00:37:21]} {[%emt 00:04:19]} 7. Qd3 {[%clk 00:39:12]}
{[%emt 00:00:55]} b6 {[%clk 00:36:18]} {[%emt 00:01:14]} 8. Nd5 {[%clk
00:37:27]} {[%emt 00:01:54]} Qd8 {[%clk 00:31:43]} {[%emt 00:04:46]} 9. Bf4
{[%clk 00:35:40]} {[%emt 00:01:57]} d6 {[%clk 00:31:20]} {[%emt 00:00:33]} 10.
Bb5+ {[%clk 00:32:41]} {[%emt 00:03:08]} Bd7 {[%clk 00:31:13]} {[%emt
00:00:17]} 11. e5 {[%clk 00:30:36]} {[%emt 00:02:16]} a6 {[%emt 00:02:47]} 12.
exd6 {[%clk 00:28:16]} {[%emt 00:02:29]} Bxb5 {[%clk 00:23:39]} {[%emt
00:05:08]} 13. Nc7+ {[%clk 00:27:54]} {[%emt 00:00:32]} Kd7 {[%clk 00:20:19]}
{[%emt 00:03:30]} 14. Qf5+ {[%clk 00:27:16]} {[%emt 00:00:47]} Kc6 {[%clk
00:20:08]} {[%emt 00:00:21]} 15. Qd5+ {[%clk 00:27:13]} {[%emt 00:00:13]} Kd7
{[%clk 00:19:51]} {[%emt 00:00:28]} 16. Ne5+ {[%clk 00:27:20]} {[%emt
00:00:02]} Kc8 {[%emt 00:01:10]} 17. Qxa8# {[%emt 00:00:02]} 1-0